fUSD/lending_fUSD_20250415
["ID","MTS","AMOUNT","RATE_DAILY","PERIOD"]
[358118887,1744746639532,-150.0,0.00017883,2]
[358118888,1744746639545,-150.0,0.00017884,2]
[358118889,1744746639554,-150.0,0.00017885,2]
[358118890,1744746639564,-150.0,0.00017885,2]
[358118891,1744746639574,-150.0,0.00017888,2]
[358118892,1744746639584,-150.0,0.00017896,2]
[358118893,1744746639593,-150.0,0.00017897,2]
[358118894,1744746639603,-150.0,0.00017917,2]
[358118895,1744746639612,-150.0,0.00017919,2]
[358118896,1744746639622,-150.0,0.00017921,2]
[358118897,1744746639631,-150.0,0.00017921,2]
[358118898,1744746639640,-150.0,0.00017924,2]
[358118899,1744746639650,-1114.0,0.00017933,2]
[358118900,1744746639660,-150.0,0.00017936,2]
[358118901,1744746639673,-150.0,0.00017941,2]
[358118902,1744746639682,-150.0,0.00017951,2]
[358118903,1744746639691,-150.0,0.00017951,2]
[358118904,1744746639701,-150.0,0.00017957,2]
[358118905,1744746639711,-150.0,0.00017959,2]
[358118906,1744746639721,-150.0,0.00017965,2]
[358118907,1744746639731,-150.0,0.00017968,2]
[358118908,1744746639740,-150.0,0.00017972,2]
[358118909,1744746639750,-150.0,0.00017977,2]
[358118910,1744746639759,-150.0,0.00017993,2]
[358118911,1744746639769,-150.0,0.00017994,2]
[358118912,1744746639778,-734.225,0.00017998,2]
[358118913,1744746639791,-151.0,0.00017999,2]
[358118914,1744746639799,-151.0,0.00017999,2]
[358118915,1744746639809,-54931.19468914,0.00018,2]
[358118916,1744746639821,-1652.40000001,0.00018,2]
[358118917,1744746639836,-235071.07053244,0.00018,2]
[358118918,1744746639851,-3704.57747349,0.00018,2]
[358118919,1744746639861,-507.64481284,0.00018,2]
[358118920,1744746639872,-932.54315619,0.00018,2]
[358118921,1744746640390,-150.0,0.00017738,2]
[358118922,1744746640399,-150.0,0.00017767,2]
[358118923,1744746640409,-95.00551333,0.00017768,2]
[358118924,1744746640495,-150.0,0.00017759,2]
[358118925,1744746640504,-54.99448667,0.00017768,2]
[358118926,1744746640514,-150.0,0.00017817,2]
[358118927,1744746640523,-95.00551333,0.00017857,2]
[358118928,1744746640653,-408.4204371,0.00017518,2]
[358118934,1744746640913,-625.30013672,0.00017518,2]
[358118936,1744746640923,-150.0,0.00017765,2]
[358118938,1744746640932,-150.0,0.00017766,2]
[358118940,1744746640941,-150.0,0.00017805,2]
[358118941,1744746640950,-54.99448667,0.00017857,2]
[358118943,1744746640960,-150.0,0.0001786,2]
[358118944,1744746640970,-150.0,0.00017863,2]
[358118945,1744746640980,-150.0,0.00017875,2]
[358118946,1744746640991,-102.06337662,0.00017898,2]
[358118947,1744746641004,-47.93662338,0.00017898,2]
[358118948,1744746641014,-150.0,0.000179,2]
[358118949,1744746641024,-105.48314534,0.00017911,2]
[358118959,1744746645379,-150.0,0.00017757,2]
[358118960,1744746645388,-150.0,0.00017776,2]
[358118961,1744746645398,-150.0,0.00017858,2]
[358118962,1744746645408,-150.0,0.00017906,2]
[358118963,1744746645418,-44.51685466,0.00017911,2]
[358118964,1744746645427,-150.0,0.00017915,2]
[358118965,1744746645436,-65.74262824,0.00017916,2]
[358118966,1744746645456,-84.25737176,0.00017916,2]
[358118967,1744746645466,-150.0,0.00017929,2]
[358118968,1744746645477,-1002.0,0.00017933,2]
[358118969,1744746645487,-150.0,0.00017933,2]
[358118970,1744746645496,-150.0,0.00017941,2]
[358118971,1744746645507,-150.0,0.00017948,2]
[358118972,1744746645516,-150.0,0.0001795,2]
[358118973,1744746645526,-150.0,0.00017951,2]
[358118974,1744746645535,-150.0,0.00017963,2]
[358118975,1744746645546,-150.0,0.00017976,2]
[358118976,1744746645555,-150.0,0.00017978,2]
[358118977,1744746645565,-150.0,0.00017979,2]
[358118978,1744746645574,-150.0,0.0001798,2]
[358118979,1744746645584,-150.0,0.0001798,2]
[358118980,1744746645594,-150.0,0.00017988,2]
[358118981,1744746645603,-51.96465352,0.00017991,2]
[358118995,1744746646254,-265.00515297,0.00017899,2]
[358118998,1744746646264,-98.03534648,0.00017991,2]
[358119001,1744746646274,-150.561,0.00017998,2]
[358119003,1744746646283,-151.0,0.00017999,2]
[358119005,1744746646292,-597.77350055,0.00018,2]
[358119006,1744746646304,-673.58452038,0.00018,2]
[358119007,1744746646315,-561.41520709,0.00018,2]
[358119008,1744746646326,-748.02773464,0.00018,2]
[358119009,1744746646360,-31412.74624053,0.00018,2]
[358119013,1744746646932,-1260.0,0.00018,2]
[358119014,1744746664394,814.84601049,0.00017999,5]
[358119015,1744746891610,250.0,0.00017,2]
[358119016,1744746905473,2214.32,0.00017,2]
[358119017,1744746907146,2214.32,0.00017,2]
[358119018,1744746908840,2214.32,0.00017,2]
[358119019,1744746912052,2214.32,0.00017,2]
[358119020,1744746932947,250.0,0.00017,2]
[358119021,1744747109573,250.0,0.00017267,2]
[358119022,1744747157712,489.73,0.0001535,2]
[358119036,1744747304145,417.03111617,0.00017374,2]
[358119037,1744747384312,16836.08,0.00017267,2]
[358119038,1744747572261,2318.05,0.00017405,2]
[358119039,1744747762347,564.81,0.00017003,2]
[358119040,1744747774443,1000.0,0.00017022,2]
[358119044,1744747807103,-489.73,0.00017613,2]
[358119045,1744747807142,-907.51596809,0.0001764,2]
[358119050,1744747831470,-251.92214903,0.00017596,2]
[358119051,1744747831480,-332.78540689,0.0001764,2]
[358119052,1744747831491,-43.92397805,0.0001764,2]
[358119053,1744747831501,-150.0,0.00017773,2]
[358119054,1744747831510,-78.34326767,0.00017783,2]
[358119055,1744747831522,-345.73170608,0.00017783,2]
[358119056,1744747831531,-300.0,0.00017797,2]
[358119057,1744747831541,-300.0,0.00017797,2]
[358119058,1744747831551,-1042.67239441,0.00017798,2]
[358119059,1744747831577,-500.83097731,0.00017798,2]
[358119060,1744747831630,-14605.53475372,0.00017798,2]
[358119177,1744747837533,-476.43552863,0.00017798,2]
[358119178,1744747837693,-2152.54554593,0.00017798,2]
[358119179,1744747837703,-1437.6633,0.00017798,2]
[358119180,1744747837713,-150.0,0.00017819,2]
[358119181,1744747837722,-534.0,0.00017877,2]
[358119182,1744747837735,-500.0,0.0001789,2]
[358119183,1744747837744,-288.40880771,0.00017898,2]
[358119184,1744747837754,-222.3983733,0.00017899,2]
[358119185,1744747837763,-2200.0198,0.000179,2]
[358119186,1744747837773,-209.10994543,0.000179,2]
[358119187,1744747837783,-1000.0,0.000179,2]
[358119188,1744747837792,-1000.0,0.000179,2]
[358119189,1744747837802,-1000.0,0.000179,2]
[358119190,1744747837811,-1000.0,0.000179,3]
[358119191,1744747837820,-1000.0,0.000179,2]
[358119192,1744747837830,-1000.0,0.000179,2]
[358119193,1744747837839,-1000.0,0.000179,2]
[358119194,1744747837848,-1000.0,0.000179,3]
[358119195,1744747837858,-1000.0,0.000179,2]
[358119196,1744747837867,-1000.0,0.000179,2]
[358119197,1744747837877,-1000.0,0.000179,2]
[358119198,1744747837886,-1000.0,0.000179,2]
[358119199,1744747837895,-1000.0,0.000179,2]
[358119200,1744747837905,-1000.0,0.000179,2]
[358119202,1744747837917,-609.0,0.000179,3]
[358119204,1744747837926,-1000.0,0.000179,2]
[358119205,1744747837936,-1000.0,0.000179,2]
[358119206,1744747837945,-21920.04936259,0.000179,2]
[358119207,1744747837957,-34406.79090356,0.000179,2]
[358119208,1744747837981,-425.08668189,0.000179,2]
[358119209,1744747837996,-1489.11138839,0.000179,2]
[358119210,1744747838008,-14604.29594906,0.000179,2]
[358119212,1744747838018,-157.98669601,0.000179,2]
[358119213,1744747838027,-953.5605975,0.000179,2]
[358119214,1744747838036,-1978.142,0.00017947,2]
[358119215,1744747838046,-173.917,0.00017949,2]
[358119216,1744747838056,-215.5,0.00017949,2]
[358119217,1744747838065,-3006.126,0.00017962,2]
[358119218,1744747838075,-152.0,0.00017962,2]
[358119219,1744747838085,-500.0,0.0001797,2]
[358119220,1744747838095,-500.0,0.00017973,2]
[358119221,1744747838104,-502.84958835,0.00017973,2]
[358119222,1744747838114,-160.55541822,0.00017973,2]
[358119223,1744747838123,-207.4,0.00017975,2]
[358119224,1744747838133,-18886.7526549,0.00017986,2]
[358119225,1744747838143,-2340.0433472,0.00017987,2]
[358119226,1744747838152,-1466.825711,0.00017987,2]
[358119227,1744747838161,-668.65185757,0.00017989,2]
[358119228,1744747838171,-166.06,0.0001799,2]
[358119229,1744747838180,-166.06,0.0001799,2]
[358119230,1744747838190,-166.06,0.0001799,2]
[358119231,1744747838199,-166.06,0.0001799,2]
[358119232,1744747838209,-166.06,0.0001799,2]
[358119233,1744747838218,-166.06,0.0001799,2]
[358119234,1744747838227,-166.06,0.0001799,2]
[358119235,1744747838237,-509.16411281,0.00017996,2]
[358119236,1744747838247,-500.0,0.00017997,2]
[358119237,1744747838256,-367.91988547,0.00017997,2]
[358119238,1744747838266,-531.478,0.00017998,2]
[358119239,1744747838276,-151.0,0.00017999,2]
[358119240,1744747838285,-571.49634003,0.00017999,2]
[358119241,1744747838295,-500.0,0.00017999,2]
[358119242,1744747838305,-500.0,0.00017999,2]
[358119243,1744747838315,-500.0,0.00017999,2]
[358119244,1744747838326,-500.0,0.00017999,2]
[358119245,1744747838336,-500.0,0.00017999,2]
[358119246,1744747838345,-500.0,0.00017999,2]
[358119247,1744747838355,-500.0,0.00017999,2]
[358119248,1744747838365,-500.0,0.00017999,2]
[358119249,1744747838375,-500.0,0.00017999,2]
[358119250,1744747838390,-500.0,0.00017999,2]
[358119251,1744747838400,-500.0,0.00017999,2]
[358119252,1744747838409,-580.79971684,0.00017999,2]
[358119253,1744747838419,-500.0,0.00017999,2]
[358119254,1744747838430,-506.97415162,0.00017999,2]
[358119255,1744747838440,-639.48408106,0.00017999,2]
[358119256,1744747838450,-500.0,0.00017999,2]
[358119257,1744747838461,-500.0,0.00017999,2]
[358119258,1744747838471,-500.0,0.00017999,2]
[358119259,1744747838481,-500.0,0.00017999,2]
[358119260,1744747838490,-500.0,0.00017999,2]
[358119261,1744747838499,-300.0,0.00017999,2]
[358119262,1744747838509,-300.0,0.00017999,2]
[358119263,1744747838518,-300.0,0.00017999,2]
[358119264,1744747838527,-519.42832684,0.00017999,2]
[358119265,1744747838537,-500.0,0.00017999,2]
[358119266,1744747838547,-500.0,0.00017999,2]
[358119267,1744747838557,-300.0,0.00017999,2]
[358119268,1744747838567,-300.0,0.00017999,2]
[358119269,1744747838576,-300.0,0.00017999,2]
[358119270,1744747838586,-500.0,0.00017999,2]
[358119271,1744747838595,-500.0,0.00017999,2]
[358119272,1744747838605,-506.05853935,0.00017999,2]
[358119273,1744747838615,-500.0,0.00017999,2]
[358119274,1744747838624,-572.51620063,0.00017999,2]
[358119275,1744747838634,-500.0,0.00017999,2]
[358119276,1744747838644,-500.0,0.00017999,2]
[358119277,1744747838654,-500.0,0.00017999,2]
[358119278,1744747838663,-500.0,0.00017999,2]
[358119279,1744747838672,-500.0,0.00017999,2]
[358119280,1744747838683,-314.99,0.00017999,2]
[358119281,1744747838692,-500.0,0.00017999,2]
[358119282,1744747838702,-500.0,0.00017999,2]
[358119283,1744747838711,-500.0,0.00017999,2]
[358119284,1744747838721,-558.3688897,0.00017999,2]
[358119285,1744747838731,-500.0,0.00017999,2]
[358119286,1744747838740,-500.0,0.00017999,2]
[358119287,1744747838750,-500.0,0.00017999,2]
[358119288,1744747838760,-500.0,0.00017999,2]
[358119289,1744747838769,-300.0,0.00017999,2]
[358119290,1744747838779,-500.0,0.00017999,2]
[358119291,1744747838790,-500.0,0.00017999,2]
[358119292,1744747838800,-157.21,0.00017999,2]
[358119293,1744747838810,-500.0,0.00017999,2]
[358119294,1744747838819,-500.0,0.00017999,2]
[358119295,1744747838828,-500.0,0.00017999,2]
[358119296,1744747838838,-500.0,0.00017999,2]
[358119297,1744747838849,-500.0,0.00017999,2]
[358119298,1744747839079,-500.0,0.00017999,2]
[358119299,1744747839089,-500.0,0.00017999,2]
[358119300,1744747839098,-500.0,0.00017999,2]
[358119301,1744747839107,-500.0,0.00017999,2]
[358119302,1744747839117,-500.0,0.00017999,2]
[358119303,1744747839126,-204.33,0.00017999,2]
[358119304,1744747839135,-500.0,0.00017999,2]
[358119305,1744747839145,-500.0,0.00017999,2]
[358119306,1744747839155,-500.0,0.00017999,2]
[358119307,1744747839165,-500.0,0.00017999,2]
[358119308,1744747839175,-666.0,0.00017999,2]
[358119309,1744747839184,-500.0,0.00017999,2]
[358119310,1744747839194,-186.78962476,0.00017999,2]
[358119311,1744747839204,-197.80555484,0.00017999,2]
[358119312,1744747839213,-226.22031706,0.00017999,2]
[358119313,1744747839223,-3254.97802994,0.00017999,2]
[358119314,1744747839232,-18875.67769669,0.00018,2]
[358119326,1744747839409,-64270.53720584,0.00018,2]
[358119328,1744747839419,-902.0,0.00018,2]
[358119330,1744747839429,-185469.18960983,0.00018,2]
[358119359,1744747839687,-255.15462043,0.00018,2]
[358119371,1744747839795,-1730.84596,0.00018,2]
[358119378,1744747839850,-394.125,0.00018,2]
[358119380,1744747839862,-256.1497,0.00018,2]
[358119387,1744747839957,-136455.83362295,0.00018,2]
[358119390,1744747839968,-8372.33,0.00018,2]
[358119407,1744747840119,-1223.25882463,0.00018,2]
[358119681,1744747844734,-18667.6443218,0.00017988,2]
[358119682,1744747844745,-226176.09354663,0.00018,2]
[358119683,1744747844756,-20000.0,0.00018,2]
[358119686,1744747845581,-999.0,0.00018,2]
[358119687,1744747845591,-130909.91632044,0.00018,2]
[358119688,1744747845634,-11385.64946353,0.00018,2]
[358119689,1744747845689,-693.20000004,0.00018,2]
[358119698,1744747923417,1671.44586063,0.000175,2]
[358119699,1744748121499,181.83,0.00016896,2]
[358119700,1744748266957,494.7,0.00015104,2]
[358119701,1744748267387,494.7,0.00017368,2]
[358119702,1744748372513,182.6,0.00016849,2]
[358119703,1744748413599,500.94866769,0.00017,3]
[358119704,1744748414087,-171.7075623,0.000179,3]
[358119705,1744748439439,500.0,0.00017,4]
[358119706,1744748451846,-1000.0,0.00019205,7]
[358119707,1744748453354,-1000.0,0.00019205,7]
[358119708,1744748509962,-487.22237226,0.0001763,2]
[358119709,1744748509991,-436.72717665,0.00017644,2]
[358119710,1744748510022,-351.37863958,0.000177,2]
[358119711,1744748510050,-188.92275907,0.0001772,2]
[358119712,1744748510080,-150.0,0.00017727,2]
[358119713,1744748510110,-150.0,0.00017729,2]
[358119714,1744748510139,-150.0,0.00017729,2]
[358119715,1744748510168,-150.0,0.0001773,2]
[358119716,1744748510196,-150.0,0.00017735,2]
[358119717,1744748510224,-150.0,0.00017739,2]
[358119718,1744748510254,-150.0,0.00017742,2]
[358119719,1744748510282,-150.0,0.00017742,2]
[358119720,1744748510310,-150.0,0.00017747,2]
[358119721,1744748510337,-150.0,0.00017751,2]
[358119722,1744748510365,-150.0,0.00017758,2]
[358119723,1744748510393,-150.0,0.00017765,2]
[358119724,1744748510420,-150.0,0.0001777,2]
[358119725,1744748510449,-150.0,0.00017772,2]
[358119726,1744748510477,-150.0,0.00017781,2]
[358119727,1744748510505,-150.0,0.00017785,2]
[358119728,1744748510536,-150.0,0.00017786,2]
[358119729,1744748510565,-300.0,0.00017799,2]
[358119730,1744748510594,-300.0,0.00017799,2]
[358119731,1744748510626,-150.0,0.000178,2]
[358119732,1744748510653,-269.1254,0.000178,2]
[358119733,1744748510685,-2349.1708,0.000178,2]
[358119734,1744748510712,-188.92275907,0.000178,2]
[358119735,1744748510740,-154.69137993,0.000178,2]
[358119736,1744748510770,-150.0,0.00017803,2]
[358119737,1744748510801,-150.0,0.00017803,2]
[358119738,1744748510830,-150.0,0.00017809,2]
[358119739,1744748510860,-150.0,0.00017818,2]
[358119740,1744748510890,-150.0,0.00017819,2]
[358119741,1744748510919,-150.0,0.0001782,2]
[358119742,1744748510949,-150.0,0.00017824,2]
[358119743,1744748510978,-150.0,0.00017834,2]
[358119744,1744748511007,-150.0,0.00017846,2]
[358119745,1744748511036,-150.0,0.00017848,2]
[358119746,1744748511064,-200.0,0.00017856,2]
[358119747,1744748511093,-150.0,0.00017857,2]
[358119748,1744748511123,-150.0,0.00017857,2]
[358119749,1744748511153,-150.0,0.00017857,2]
[358119750,1744748511182,-150.0,0.00017862,2]
[358119751,1744748511210,-150.0,0.00017862,2]
[358119752,1744748511240,-150.0,0.00017867,2]
[358119753,1744748511270,-150.0,0.00017868,2]
[358119754,1744748511298,-150.0,0.00017872,2]
[358119755,1744748511326,-150.0,0.00017881,2]
[358119756,1744748511354,-150.0,0.00017885,2]
[358119757,1744748511381,-1371.4725,0.00017888,2]
[358119758,1744748511407,-11002.36621344,0.00017888,2]
[358119759,1744748534042,503.61,0.00017022,2]
[358119760,1744748542178,-171.70756228,0.000179,3]
[358119761,1744748552991,250.0,0.00017022,2]
[358119762,1744748563263,-830.0,0.00019232,12]
[358119763,1744748567742,158.86,0.00017022,2]
[358119764,1744748568201,158.86,0.00017028,2]
[358119765,1744748568471,158.86,0.00017034,2]
[358119766,1744748568730,158.86,0.0001704,2]
[358119767,1744748568957,158.86,0.00017047,2]
[358119768,1744748569186,158.86,0.00017053,2]
[358119769,1744748569413,158.86,0.00017059,2]
[358119770,1744748569629,158.86,0.00017065,2]
[358119771,1744748570035,158.86,0.00017071,2]
[358119772,1744748570238,158.86,0.00017077,2]
[358119773,1744748570456,158.86,0.00017083,2]
[358119774,1744748570899,158.86,0.00017089,2]
[358119775,1744748571113,158.86,0.00017095,2]
[358119776,1744748571386,158.86,0.00017101,2]
[358119777,1744748571628,158.86,0.00017107,2]
[358119778,1744748578795,-1000.0,0.00019232,12]
[358119779,1744748748328,250.0,0.00017,2]
[358119780,1744748789624,250.0,0.00017,2]
[358119781,1744748808439,4363.47,0.00016895,2]
[358119782,1744748821435,1000.0,0.00016895,2]
[358119784,1744748898615,23900.0,0.00016895,2]
[358119788,1744748985100,-188.92275908,0.0001758,2]
[358119790,1744748985130,-487.22237224,0.0001758,2]
[358119792,1744748985158,-2037.22079811,0.0001768,2]
[358119794,1744748985192,-1076.59071791,0.0001768,2]
[358119795,1744748985274,-815.11078765,0.0001768,2]
[358119804,1744749031673,-436.72717665,0.00017668,2]
[358119805,1744749031683,-145.51929255,0.0001768,2]
[358119806,1744749031692,-414.8026,0.00017733,2]
[358119807,1744749031701,-150.0,0.0001775,2]
[358119808,1744749031710,-150.0,0.00017779,2]
[358119809,1744749031720,-300.0,0.00017779,2]
[358119810,1744749031729,-300.0,0.00017779,2]
[358119811,1744749031738,-3462.98731844,0.0001778,2]
[358119812,1744749031750,-546.70831491,0.0001778,2]
[358119813,1744749031765,-252.47215573,0.0001778,2]
[358119814,1744749031789,-65830.90321331,0.0001778,2]
[358119815,1744749031799,-279.47839207,0.00017797,2]
[358119816,1744749031809,-1452.43797116,0.00017799,2]
[358119817,1744749031818,-1439.76511658,0.000178,2]
[358119818,1744749031828,-16906.54250168,0.000178,2]
[358119819,1744749031839,-1452.4379711,0.0001781,2]
[358119820,1744749031848,-16906.5425016,0.00017811,2]
[358119821,1744749031857,-150.0,0.00017814,2]
[358119822,1744749031866,-1452.4379711,0.00017821,2]
[358119823,1744749031876,-16906.5425016,0.00017822,2]
[358119824,1744749031886,-150.0,0.00017832,2]
[358119825,1744749031895,-1452.4379711,0.00017833,2]
[358119826,1744749031904,-16906.5425016,0.00017833,2]
[358119827,1744749031913,-150.0,0.00017842,2]
[358119828,1744749031923,-150.0,0.00017842,2]
[358119829,1744749031932,-1452.4379711,0.00017844,2]
[358119830,1744749031941,-16906.5425016,0.00017844,2]
[358119831,1744749031951,-1452.4379711,0.00017855,2]
[358119832,1744749031960,-16906.5425016,0.00017856,2]
[358119833,1744749031969,-579.49,0.00017857,2]
[358119834,1744749031978,-150.0,0.00017865,2]
[358119835,1744749031987,-1452.4379711,0.00017866,2]
[358119836,1744749031996,-16906.5425016,0.00017867,2]
[358119837,1744749032005,-579.49,0.00017868,2]
[358119838,1744749032015,-150.0,0.00017868,2]
[358119839,1744749032024,-163.58366371,0.00017873,2]
[358119840,1744749032034,-185.02435598,0.00017873,2]
[358119841,1744749032043,-500.0,0.00017873,2]
[358119843,1744749032052,-1452.4379711,0.00017878,2]
[358119845,1744749032061,-16906.5425016,0.00017878,2]
[358119847,1744749032070,-579.49,0.00017879,2]
[358119849,1744749032079,-361.25,0.00017879,2]
[358119851,1744749032088,-150.0,0.0001788,2]
[358119852,1744749032097,-579.49,0.0001788,2]
[358119855,1744749032106,-579.49,0.0001788,2]
[358119857,1744749032119,-579.49,0.0001788,2]
[358119859,1744749032128,-150.0,0.00017886,2]
[358119861,1744749032137,-151.0,0.00017886,2]
[358119863,1744749032146,-668.65185757,0.00017886,2]
[358119864,1744749032155,-207.4,0.00017886,2]
[358119866,1744749032164,-162.380719,0.00017886,2]
[358119867,1744749032174,-579.49,0.00017887,2]
[358119868,1744749032183,-9697.36008656,0.00017888,2]
[358119869,1744749032193,-1508.1409,0.00017888,2]
[358119870,1744749032202,-150.0,0.00017888,2]
[358119871,1744749032211,-500.0,0.00017888,2]
[358119872,1744749032222,-1452.4379711,0.00017889,2]
[358119873,1744749032232,-16906.5425016,0.00017889,2]
[358119874,1744749032241,-579.49,0.00017889,2]
[358119875,1744749032250,-579.49,0.00017889,2]
[358119876,1744749032260,-1000.0,0.00017889,2]
[358119877,1744749032269,-579.49,0.0001789,2]
[358119878,1744749032278,-69392.45637045,0.0001789,2]
[358119879,1744749032288,-214.19825783,0.00017896,2]
[358119881,1744749032298,-275.17240136,0.00017896,2]
[358119882,1744749032308,-17890.4878,0.00017897,2]
[358119884,1744749032317,-364.9361,0.00017898,2]
[358119886,1744749032326,-1000.0,0.00017899,2]
[358119888,1744749032335,-2128.4123,0.00017899,2]
[358119890,1744749032344,-14528.0482,0.00017899,2]
[358119892,1744749032353,-566.80960203,0.00017899,2]
[358119894,1744749032362,-500.0,0.00017899,2]
[358119895,1744749032372,-300.0,0.00017899,2]
[358119897,1744749032381,-199.53671834,0.00017899,2]
[358119899,1744749032389,-179.04706549,0.00017899,2]
[358119901,1744749032399,-282.79383437,0.00017899,2]
[358119903,1744749032407,-500.0,0.00017899,2]
[358119905,1744749032416,-500.0,0.00017899,2]
[358119907,1744749032425,-522.78,0.00017899,2]
[358119909,1744749032435,-531.44597941,0.00017899,2]
[358119911,1744749032444,-500.0,0.00017899,2]
[358119913,1744749032453,-500.0,0.00017899,2]
[358119914,1744749032463,-237.63474249,0.00017899,2]
[358119916,1744749032472,-500.0,0.00017899,2]
[358119918,1744749032482,-500.0,0.00017899,2]
[358119920,1744749032492,-500.0,0.00017899,2]
[358119922,1744749032501,-500.0,0.00017899,2]
[358119924,1744749032511,-500.0,0.00017899,2]
[358119926,1744749032520,-500.0,0.00017899,2]
[358119928,1744749032530,-500.0,0.00017899,2]
[358119930,1744749032539,-500.0,0.00017899,2]
[358119932,1744749032549,-500.0,0.00017899,2]
[358119934,1744749032559,-500.0,0.00017899,2]
[358119936,1744749032568,-500.0,0.00017899,2]
[358119938,1744749032577,-500.0,0.00017899,2]
[358119940,1744749032587,-225.57,0.00017899,2]
[358119942,1744749032598,-500.0,0.00017899,2]
[358119944,1744749032607,-500.0,0.00017899,2]
[358119946,1744749032616,-1971.26,0.00017899,2]
[358119947,1744749032624,-500.0,0.00017899,2]
[358119949,1744749032634,-500.0,0.00017899,2]
[358119951,1744749032644,-295.26116512,0.00017899,2]
[358119953,1744749032653,-500.0,0.00017899,2]
[358119955,1744749032663,-500.0,0.00017899,2]
[358119956,1744749032673,-169.1826585,0.00017899,2]
[358119957,1744749032682,-500.0,0.00017899,2]
[358119958,1744749032692,-500.0,0.00017899,2]
[358119959,1744749032702,-500.0,0.00017899,2]
[358119960,1744749032712,-500.0,0.00017899,2]
[358119961,1744749032723,-273.52151039,0.00017899,2]
[358119962,1744749032733,-500.0,0.00017899,2]
[358119963,1744749032743,-500.0,0.00017899,2]
[358119964,1744749032753,-500.0,0.00017899,2]
[358119965,1744749032765,-500.0,0.00017899,2]
[358119966,1744749032775,-500.63160936,0.00017899,2]
[358119967,1744749032784,-500.0,0.00017899,2]
[358119968,1744749032794,-543.66185593,0.00017899,2]
[358119969,1744749032805,-500.0,0.00017899,2]
[358119970,1744749032815,-642.5933,0.000179,2]
[358119971,1744749032824,-22825.3906,0.000179,2]
[358119972,1744749032835,-27047.9693,0.000179,2]
[358119973,1744749032844,-976.8797,0.000179,2]
[358119974,1744749032854,-609.6593,0.000179,2]
[358119975,1744749032864,-1661.0542,0.000179,2]
[358119976,1744749032873,-17631.8181,0.000179,2]
[358119977,1744749032883,-453.96849313,0.000179,2]
[358119978,1744749032893,-304.88104584,0.000179,2]
[358119979,1744749032902,-16906.5425016,0.000179,2]
[358119980,1744749032911,-1452.4379711,0.000179,2]
[358119981,1744749032922,-171.70756228,0.000179,3]
[358119982,1744749032931,-264.56617803,0.000179,2]
[358119983,1744749032941,-181.92149554,0.000179,2]
[358119984,1744749032951,-150.0,0.00017902,2]
[358119985,1744749032961,-150.0,0.00017908,2]
[358119986,1744749032970,-150.0,0.00017929,2]
[358119988,1744749032980,-886.61753832,0.00017944,2]
[358119990,1744749032990,-150.0,0.00017945,2]
[358119992,1744749032999,-197.142,0.0001796,2]
[358119994,1744749033008,-1926.572,0.00017961,2]
[358119996,1744749033017,-150.0,0.00017965,2]
[358119998,1744749033026,-150.0,0.00017965,2]
[358120000,1744749033036,-608.78042851,0.00017973,2]
[358120002,1744749033046,-504.35525356,0.00017973,2]